Cogmind - Beta 16 @@@ ROGUE MODE // 2025.11.21 @ 17:05:40 // Winter2019/RPGLIKE Player: Jaegerpls Result: System corrupted Performance ------------- Evolutions (1) 500 Regions Visited (6) 1200 Robots Destroyed (169) 845 Value Destroyed (3943) 3943 Prototype IDs (32) 640 Alien Tech Used (0) 0 Bonus (666) 666 TOTAL SCORE: 7794 Bonus ------- High Alert Combat Kills 366 Aligned with FarCom 300 Cogmind --------- Core Integrity 0/600 Matter 0/300 Energy 341/460 System Corruption 100% Temperature Cool (0) Movement Treading (148) Location -8/Mines Parts ------- > --- POWER (4) -------- Cooled Ion Engine Light Nuclear Core Light Nuclear Core Light Nuclear Core > --- PROPULSION (5) --- Light Treads Advanced Treads Advanced Treads Advanced Treads Advanced Treads > --- UTILITY (7) ------ Cooling System Experimental Sensor Array Improved Signal Interpreter Improved Terrain Scanner Targeting Computer Medium Armor Plating Shield Generator > --- WEAPON (2) ------- Latent Energy Streamer > --- INVENTORY (1) ---- EM Pulse Cannon Peak State ------------ > --- POWER ------------ Cooled Ion Engine Light Nuclear Core Light Nuclear Core > --- PROPULSION ------- Light Treads Advanced Treads Advanced Treads Advanced Treads Advanced Treads > --- UTILITY ---------- Cooling System Experimental Sensor Array Improved Signal Interpreter Improved Terrain Scanner Targeting Computer Medium Armor Plating Shield Generator > --- WEAPON ----------- Firepult > --- INVENTORY -------- Slug Cannon [Rating: 64] Favorites ----------- Power Light Nuclear Core Engine Cooled Ion Engine Power Core Light Nuclear Core Propulsion Advanced Treads Treads Advanced Treads Hover Unit Hover Unit Flight Unit Improved Flight Unit Utility Improved Terrain Scanner Device Improved Terrain Scanner Processor Targeting Computer Hackware Hacking Suite Protection Medium Armor Plating Weapon Heavy Particle Cannon Energy Gun Particle Gun Energy Cannon Heavy Particle Cannon Ballistic Gun Assault Rifle Ballistic Cannon Light Cannon Build | -11 -10 -10 -9 -9 -9 -8 ------- Run | Yrd Mat Min Mat Min Exi Min Slots Evolved 14 | 4 2 2 5 . 1 . Power 3 | . . . 2 . 1 . Propulsion 4 | 1 . 1 2 . . . Utility 6 | 2 2 1 1 . . . Weapon 1 | 1 . . . . . . Parts Attached 51 | 5 11 6 23 2 3 1 Power 8 | 1 1 . 4 1 . 1 Engine 5 | 1 . . 4 . . . Core 3 | . 1 . . 1 . 1 Reactor . | . . . . . . . Propulsion 16 | 2 2 . 12 . . . Treads 7 | 2 . . 5 . . . Leg . | . . . . . . . Wheel . | . . . . . . . Hover 8 | . 2 . 6 . . . Flight 1 | . . . 1 . . . Utility 11 | . 5 1 3 1 1 . Device 7 | . 3 . 2 1 1 . Storage . | . . . . . . . Processor 2 | . 1 1 . . . . Hackware 1 | . 1 . . . . . Protection 1 | . . . 1 . . . Artifact . | . . . . . . . Weapon 16 | 2 3 5 4 . 2 . Energy Gun 8 | 1 2 3 2 . . . Energy Cannon 5 | . . 2 1 . 2 . Ballistic Gun 2 | 1 . . 1 . . . Ballistic Cannon 1 | . 1 . . . . . Launcher . | . . . . . . . Special Weapon . | . . . . . . . Impact Weapon . | . . . . . . . Slashing Weapon . | . . . . . . . Piercing Weapon . | . . . . . . . Special Melee Weapon . | . . . . . . . Unidentified Prototypes 10 | . . . 6 1 3 . Parts Lost 1 | . . . 1 . . . Power 1 | . . . 1 . . . Propulsion . | . . . . . . . Utility . | . . . . . . . Weapon . | . . . . . . . Highest Loss Streak 1 | . . . 1 . . . To Critical Strikes . | . . . . . . . Average Backups . | . . . . . 1 1 Power . | . . . . . . . Propulsion . | . . . . . . . Utility . | . . . . . . . Weapon . | . . . . . 1 1 Tool/Special . | . . . . . . . Unused Backups 2 | . . 1 . . 1 . Power . | . . . . . . . Propulsion . | . . . . . . . Utility . | . . . . . . . Weapon 2 | . . 1 . . 1 . Tool/Special . | . . . . . . . Average Slot Usage (%) 95 | . 89 97 94 100 95 98 Engine 4 | . 1 . 6 6 5 5 Core 10 | . 9 9 5 9 11 14 Treads 18 | . 7 . 14 29 27 27 Hover 6 | . 12 18 12 . . . Device 22 | . 26 28 18 21 22 22 Processor 10 | . 3 11 12 11 11 11 Hackware 3 | . 5 9 5 1 . . Protection 2 | . . . 1 5 5 5 Energy Gun 4 | . 16 16 3 . . . Energy Cannon 7 | . . 2 8 11 10 10 Peak Build Rating 64 | 5 20 28 44 50 64 60 Average Rating 38 | 4 15 22 36 48 54 59 On Entrance 29 | . 5 20 28 44 50 57 Avg Prop Armor Cover (%) . | . . . . . . . Naked Turns . | . . . . . . . Heaviest Build 53 | 9 13 18 45 45 53 52 Greatest Support 113 | 40 40 23 113 113 113 113 Greatest Overweight (x) 2 | 2 2 . . . . . Average Overweight (x) . | . . . . . . . Largest Inventory Capacity 1 | 1 1 1 1 1 1 1 Average Capacity 1 | 1 1 1 1 1 1 1 Most Carried 1 | . 1 1 1 1 1 1 Average Carried . | . . . . . 1 1 Final Capacity 1 | 1 1 1 1 1 1 1 Final Carried 1 | . . . . 1 1 1 Class Distribution -------------------- 40% | Scavenger-Skirmisher 34% | Scavenger-Mutant 15% | Hacker-Mutant 10% | Mutant Dominant Class ---------------- Scavenger-Mutant | -10/Materials Scavenger-Mutant | -10/Mines Hacker-Mutant | -9/Materials Scavenger-Skirmisher | -9/Mines Scavenger-Skirmisher | -9/Exiles Scavenger-Skirmisher | -8/Mines Resources | -11 -10 -10 -9 -9 -9 -8 ----------- Run | Yrd Mat Min Mat Min Exi Min Matter Collected 1026 | 325 343 60 260 20 . 18 Remotely . | . . . . . . . Salvage Created 5173 | 265 430 431 2000 380 . 1667 Parts 351 | 22 59 27 109 37 . 97 Haulers Intercepted 8 | . 2 . 6 . . . Recyclers Shooed 2 | . . . . . . 2 Parts Field Recycled . | . . . . . . . Retrieved Matter . | . . . . . . . Parts Self-Destructed . | . . . . . . . Prevented . | . . . . . . . Parts Restored . | . . . . . . . Kills | -11 -10 -10 -9 -9 -9 -8 ------- Run | Yrd Mat Min Mat Min Exi Min Combat Hostiles Destroyed 97 | . 17 13 36 27 . 4 Guns 27 | . 13 9 5 . . . Cannons 62 | . 4 1 30 26 . 1 AOE 7 | . . 3 . 1 . 3 Classes Destroyed 13 | 3 5 1 3 1 . . Worker 15 | 2 . 1 1 . . 11 Builder 19 | . . . 1 1 . 17 Tunneler 15 | 9 1 1 . . . 4 Hauler 8 | . 2 . 6 . . . Recycler 10 | 1 . . 2 . . 7 Operator 7 | . 5 . 2 . . . Watcher 8 | . 3 . 5 . . . Swarmer 39 | . 6 9 9 15 . . Grunt 33 | . 11 2 14 2 . 4 Brawler 3 | . . . 3 . . . Duelist 1 | . . . 1 . . . Sentry 11 | . . 2 9 . . . Assembled 10 | . . . . 10 . . Best Kill Streak 11 | 6 4 4 6 11 . 7 Combat Bots Only 10 | . 3 3 4 10 . 3 Max Kills in Single Turn 4 | 1 1 3 2 2 . 4 Gunslinging . | . . . . . . . Exploded 2 | . . 2 . 1 . 2 Melee . | . . . . . . . Uniques/NPCs Destroyed . | . . . . . . . Combat | -11 -10 -10 -9 -9 -9 -8 -------- Run | Yrd Mat Min Mat Min Exi Min Hostile Shots Fired 344 | . 67 51 128 81 . 17 Missed 112 | . 19 15 43 29 . 6 Hits 232 | . 48 36 85 52 . 11 Melee 3 | . . . . 3 . . Projectile 229 | . 48 36 85 49 . 11 Critical Strikes 8 | . . . 6 2 . . Damage Taken 2522 | . 481 407 954 471 . 209 Core 1910 | . 378 332 713 332 . 155 Absorbed by Shields 382 | . . . 112 185 . 85 Redirected to Core 1643 | . 316 253 607 312 . 155 Core Remaining (%) 84 | 100 . 68 . . . . Volleys Fired 575 | 25 199 40 192 51 . 68 Largest 2 | 2 2 2 2 2 . 2 Hottest 150 | 70 105 150 150 138 . 135 Shots Fired 1032 | 50 353 76 378 102 . 73 Gun 564 | 50 318 63 133 . . . Cannon 468 | . 35 13 245 102 . 73 Launcher . | . . . . . . . Special . | . . . . . . . Kinetic 91 | 25 66 . . . . . Thermal 639 | 25 178 49 325 51 . 11 Explosive . | . . . . . . . Electromagnetic 302 | . 109 27 53 51 . 62 Robot Hit Streak 18 | 13 10 9 18 7 . 3 Robot Miss Streak 7 | 2 7 4 3 4 . 2 Penetration Max . | . . . . . . . Secondary Targets . | . . . . . . . Shots Hit Robots 353 | 30 98 31 137 49 . 8 Core Hits 216 | 13 34 18 57 29 . 65 Critical Kills . | . . . . . . . Critical Parts Destroyed . | . . . . . . . Critical Strikes 13 | 5 5 . 3 . . . Burn 11 | 5 3 . 3 . . . Blast 1 | . 1 . . . . . Corrupt 1 | . 1 . . . . . Melee Attacks . | . . . . . . . Impact . | . . . . . . . Slashing . | . . . . . . . Piercing . | . . . . . . . Sneak Attacks . | . . . . . . . Combat Hostiles . | . . . . . . . Follow-up Attacks . | . . . . . . . Damage Inflicted 10708 | 412 1609 866 3478 1289 . 3054 Guns 2830 | 412 1159 412 847 . . . Cannons 4603 | . 405 150 2585 1255 . 208 Explosions 3275 | . 45 304 46 34 . 2846 Melee . | . . . . . . . Ramming . | . . . . . . . Kinetic 605 | 186 419 . . . . . Thermal 5087 | 226 816 746 2616 583 . 100 Explosive . | . . . . . . . Electromagnetic 5016 | . 374 120 862 706 . 2954 Impact . | . . . . . . . Slashing . | . . . . . . . Piercing . | . . . . . . . Highest Corruption 100 | . . . . . . 100 Average Corruption 57 | . . . . . . 57 Corruption Purged . | . . . . . . . Corruption Blocked . | . . . . . . . Effects 139 | . . . . . . 139 Message Errors 37 | . . . . . . 37 Matter Fused 32 | . . . . . . 32 Heat Flow Errors 16 | . . . . . . 16 Energy Discharges 16 | . . . . . . 16 Data Loss (minor) 19 | . . . . . . 19 Data Loss (major) 6 | . . . . . . 6 Misfires 3 | . . . . . . 3 Alerts 6 | . . . . . . 6 Weapon Failures 4 | . . . . . . 4 Overload Shots . | . . . . . . . Overflow Damage 175 | . 7 10 65 27 . 66 Projectiles 109 | . 7 10 65 27 . . Explosions 66 | . . . . . . 66 Melee . | . . . . . . . Knockbacks 2 | . 2 . . . . . Impact . | . . . . . . . Kinetic 2 | . 2 . . . . . Secondary . | . . . . . . . Self-Inflicted Damage 239 | . 32 29 55 . . 123 Shots 8 | . 1 1 1 . . 5 Rammed . | . . . . . . . Targets Rammed . | . . . . . . . Kicked . | . . . . . . . Crushed . | . . . . . . . Highest Temperature 225 | . 5 2 28 . . 225 Average Temperature 84 | . 5 2 13 . . 95 Received Heat Transfer 587 | . 117 93 299 12 . 66 Siege Activations . | . . . . . . . Martial Activations . | . . . . . . . Shielding Activations . | . . . . . . . Robots Disrupted . | . . . . . . . Combat Hostiles . | . . . . . . . Robots Corrupted 2 | . . . 1 . . 1 Combat Hostiles 1 | . . . 1 . . . Parts Fried 19 | . 2 . 3 . . 14 Impact Corruptions . | . . . . . . . Robots Melted . | . . . . . . . Combat Hostiles . | . . . . . . . Parts Melted 22 | 2 3 5 11 1 . . Heat Transferred 9391 | 1036 2072 1114 4194 827 . 148 Parts Sabotaged . | . . . . . . . Parts Stolen . | . . . . . . . Parts Stripped . | . . . . . . . Power Chain Reactions 8 | . 2 3 1 1 . 1 Latent Energy Used 4495 | . . . . . . 4495 LE Corruption 98 | . . . . . . 98 Alert | -11 -10 -10 -9 -9 -9 -8 ------- Run | Yrd Mat Min Mat Min Exi Min Maximum Alert Level 4 | . 2 1 4 2 . . Low Security (%) 47 | 100 50 4 16 . . 100 Level 1 23 | . 21 95 16 52 . . Level 2 18 | . 27 . 26 47 . . Level 3 8 | . . . 34 . . . Level 4 1 | . . . 5 . . . Level 5 . | . . . . . . . High Security . | . . . . . . . Max Security . | . . . . . . . Peak Influence 1159 | 20 513 315 1159 468 . 176 Initial 446 | . . 197 111 446 . . Average 277 | . 227 240 593 359 . 54 Influence Increases 4801 | 60 999 440 2273 557 . 472 Destroy 0b10 Robot/C 1740 | . 340 260 720 340 . 80 Destroy 0b10 Robot/NC 410 | 60 55 10 85 5 . 195 Destroy Leader 392 | . 90 40 212 40 . 10 Allied During Kill 10 | . . . . 10 . . Successful Hack 72 | . 12 . 60 . . . Disable Machine 1680 | . 420 105 975 150 . 30 Destroy Structure 407 | . 52 25 176 12 . 142 Partial Spotted 30 | . 15 . 15 . . . Lose Combat Pursuer 60 | . 15 . 30 . . 15 Influence Decreases 4791 | 60 492 660 1415 1301 401 462 Entered New Map 1586 | . . 310 176 699 401 . Time Decay 2610 | 60 492 350 684 562 . 462 Lost Part 10 | . . . 10 . . . Lost Ally 40 | . . . . 40 . . Purge Threat 545 | . . . 545 . . . Squads Dispatched 16 | . 5 1 8 . . 2 Investigation 5 | . 1 1 3 . . . Extermination . | . . . . . . . Reinforcement 8 | . 4 . 2 . . 2 Assault 3 | . . . 3 . . . Garrison . | . . . . . . . Intercept . | . . . . . . . Searches Triggered . | . . . . . . . Construction Impeded 3 | . . . 1 . . 2 Haulers Reinforced . | . . . . . . . Active Scanning Responses . | . . . . . . . Cargo Convoy Interrupts . | . . . . . . . Stealth | -11 -10 -10 -9 -9 -9 -8 --------- Run | Yrd Mat Min Mat Min Exi Min Distress Signals 4 | . 1 . 3 . . . Communications Jammed . | . . . . . . . Distress Signals . | . . . . . . . Times Spotted 138 | . 32 12 58 30 . 6 Peak Tracking Total 5 | . 4 3 5 5 . 3 Tactical Retreats 3 | . 1 . 1 . . 1 Traps | -11 -10 -10 -9 -9 -9 -8 ------- Run | Yrd Mat Min Mat Min Exi Min Traps Triggered 3 | . 2 . 1 . . . Indirectly . | . . . . . . . Trap Hack Attempts . | . . . . . . . Triggered . | . . . . . . . Disarmed . | . . . . . . . Reprogrammed . | . . . . . . . Reused . | . . . . . . . Traps Extracted . | . . . . . . . Installed . | . . . . . . . Triggered . | . . . . . . . Machines | -11 -10 -10 -9 -9 -9 -8 ---------- Run | Yrd Mat Min Mat Min Exi Min Machines Disabled 112 | . 28 7 65 10 . 2 Max in Single Turn 4 | . 1 4 2 1 . 1 Machines Repaired . | . . . . . . . Machines Dismantled . | . . . . . . . Machines Sabotaged . | . . . . . . . Overloaded Fab Kills . | . . . . . . . Hacking | -11 -10 -10 -9 -9 -9 -8 --------- Run | Yrd Mat Min Mat Min Exi Min Machines Accessed 21 | . 7 1 12 . 1 . Terminals 15 | . 5 . 10 . . . Fabricators . | . . . . . . . Repair Stations . | . . . . . . . Recycling Units 3 | . 2 . 1 . . . Scanalyzers 1 | . . . 1 . . . Garrison Access . | . . . . . . . Total Hacks 68 | . 24 1 42 . 1 . Successful 45 | . 14 1 29 . 1 . Failed 22 | . 10 . 12 . . . Catastrophic 2 | . . . 2 . . . Database Lockouts 1 | . . . 1 . . . Manual 39 | . 15 . 23 . 1 . Terminals 52 | . 15 . 37 . . . Fabricators . | . . . . . . . Repair Stations . | . . . . . . . Recycling Units 10 | . 9 . 1 . . . Scanalyzers 4 | . . . 4 . . . Garrison Access . | . . . . . . . Terminal Hacks 17 | . 1 1 14 . 1 . Robot Analysis 6 | . 1 . 5 . . . Prototype ID Bank 1 | . . . 1 . . . Open Door 1 | . . 1 . . . . Alert Level 3 | . . . 3 . . . Unreport Threat 4 | . . . 4 . . . Registered Components 1 | . . . 1 . . . Proto ID Catalog 1 | . . . . . 1 . Fabricator Hacks . | . . . . . . . Repair Station Hacks . | . . . . . . . Recycling Unit Hacks 6 | . 5 . 1 . . . Report Inventory 3 | . 2 . 1 . . . Retrieve Components 3 | . 3 . . . . . Scanalyzer 3 | . . . 3 . . . Retrieve Study 3 | . . . 3 . . . Garrison Access Hacks . | . . . . . . . Unauthorized Hacks 19 | . 8 . 11 . . . Terminals 19 | . 8 . 11 . . . Botnet 8 | . 3 . 5 . . . Skim 11 | . 5 . 6 . . . Fabricators . | . . . . . . . Repair Stations . | . . . . . . . Recycling Units . | . . . . . . . Scanalyzers . | . . . . . . . Garrison Access . | . . . . . . . Data Cores Recovered 1 | . . . 1 . . . Used . | . . . . . . . Hacking Detections 17 | . 6 . 11 . . . Full Trace Events 1 | . . . 1 . . . Feedback Events . | . . . . . . . Feedback Blocked . | . . . . . . . Robot Schematics Acquired . | . . . . . . . Robots Built . | . . . . . . . Authchips . | . . . . . . . Time . | . . . . . . . Total Robot Build Rating . | . . . . . . . Part Schematics Acquired . | . . . . . . . Parts Built . | . . . . . . . Authchips . | . . . . . . . Time . | . . . . . . . Total Part Build Rating . | . . . . . . . Part Studies Acquired 3 | . . . 3 . . . Parts Repaired . | . . . . . . . Time . | . . . . . . . Parts Recycled . | . . . . . . . Recycled Matter . | . . . . . . . Retrieved Matter . | . . . . . . . Retrieved Components 11 | . 11 . . . . . Parts Scanalyzed . | . . . . . . . Part Schematics Acquired . | . . . . . . . Parts Damaged . | . . . . . . . Bothacking | -11 -10 -10 -9 -9 -9 -8 ------------ Run | Yrd Mat Min Mat Min Exi Min Used RIF Installer . | . . . . . . . Robots Hacked . | . . . . . . . Non-combat . | . . . . . . . Combat . | . . . . . . . Robot Hacks Applied . | . . . . . . . Relay Couplers Released . | . . . . . . . Fabnet Peak Effective % . | . . . . . . . Robots Rewired . | . . . . . . . Allies Hacked . | . . . . . . . Hacks Repelled . | . . . . . . . Allies | -11 -10 -10 -9 -9 -9 -8 -------- Run | Yrd Mat Min Mat Min Exi Min Total Allies 2 | . . . . 2 . . Largest Group 2 | . . . . 2 . . Highest-Rated Group 47 | . . . . 47 . . Highest-Rated Ally 31 | . . . . 31 . . Total Orders . | . . . . . . . Ally Attacks 12 | . . . . 12 . . Total Damage 139 | . . . . 139 . . Kills 4 | . . . . 4 . . Allies Corrupted . | . . . . . . . Allies Melted . | . . . . . . . Intel | -11 -10 -10 -9 -9 -9 -8 ------- Run | Yrd Mat Min Mat Min Exi Min Active Infowar (turns) 10268 | . 1565 788 2738 1661 688 2828 Sensors 4703 | . . . . 1187 688 2828 Terrain 10268 | . 1565 788 2738 1661 688 2828 Robot Analysis Total 5 | . 1 . 4 . . . Derelict Logs Recovered 3 | . . 1 . 2 . . Drone Launches . | . . . . . . . Drone Recoveries . | . . . . . . . Exploration | -11 -10 -10 -9 -9 -9 -8 ------------- Run | Yrd Mat Min Mat Min Exi Min Turns Passed 11345 | 908 1735 788 2738 1661 688 2827 Spaces Moved 5270 | 131 1139 617 1979 762 401 241 Core 9 | 9 . . . . . . Treads 2451 | 122 163 . 762 762 401 241 Legs . | . . . . . . . Wheels . | . . . . . . . Hover 2810 | . 976 617 1217 . . . Flight . | . . . . . . . Fastest Speed 44 | 50 56 56 44 148 148 148 Average Speed 99 | 155 77 56 86 148 148 148 Slowest Speed 180 | 160 180 56 148 148 148 148 Overloaded Moves . | . . . . . . . Propulsion Burnouts . | . . . . . . . Robots Hopped . | . . . . . . . Potential Cave-ins . | . . . . . . . Cave-ins Triggered . | . . . . . . . Exploration Rate (%) 78 | 5 97 99 98 98 88 61 Regions Visited 6 Branch Regions 4 Pre-discovered Areas 3 | . . . 3 . . . Known Exits Taken 4 | . . 1 1 1 1 . Unknown Exits Taken 2 | 1 1 . . . . . Scrap Searched 3 | . . 2 . 1 . . Spaces Dug 13 | . . . 5 . . 8 Terrain Destroyed 532 | . 51 24 206 15 . 236 Melee . | . . . . . . . Projectile 61 | . . 4 38 13 . 6 AOE 471 | . 51 20 168 2 . 230 Terrain Rammed . | . . . . . . . Walls Destroyed . | . . . . . . . Machines Disabled . | . . . . . . . Actions | -11 -10 -10 -9 -9 -9 -8 --------- Run | Yrd Mat Min Mat Min Exi Min Total 10355 | 783 1636 983 2624 1194 496 2639 Wait 4281 | 623 251 304 341 352 82 2328 Move 5264 | 130 1138 616 1978 761 400 241 Hop . | . . . . . . . Pick Up 11 | . 2 1 5 2 1 . Fast Attach 48 | 5 10 5 19 2 6 1 Attach 3 | . 1 . 2 . . . Detach 4 | . 2 1 1 . . . Swap 6 | . . 1 5 . . . Drop 45 | . 7 6 21 3 7 1 Fire 575 | 25 199 40 192 51 . 68 Melee . | . . . . . . . Ram . | . . . . . . . Kick . | . . . . . . . Crush . | . . . . . . . Escape Stasis . | . . . . . . . Rewire . | . . . . . . . Trap . | . . . . . . . Miscellaneous 118 | . 26 9 60 23 . . Route ------- -11/Scrapyard -10/Materials (discovered 5 exits: *Mat x3 / *Min / Sub) -10/Mines (discovered 3 exits: *Mat x2 / *Sub) -9/Materials (discovered 4 exits: *Mat x3 / *Min) -9/Mines (discovered 4 exits: *Mat x2 / *Exi / *Zio) -9/Exiles -8/Mines (discovered 1 exit: *Mat) History --------- Turn | Location | Event 1 | -11/Scrapyard | Upgraded with Propulsion slot (x1) 1 | -11/Scrapyard | Upgraded with Utility slot (x2) 1 | -11/Scrapyard | Upgraded with Weapon slot (x1) 10 | -11/Scrapyard | Discovered new exit (range 16) 909 | -11/Scrapyard | Entered Materials 910 | -10/Materials | Build established: Mutant 1123 | -10/Materials | Discovered new exit (range 14) 1467 | -10/Materials | Build established: Scavenger-Mutant 1609 | -10/Materials | Reached level 2 1643 | -10/Materials | Discovered new exit (range 6) 1733 | -10/Materials | Upgraded with Utility slot (x1) 1792 | -10/Materials | Discovered new exit (range 5) 1935 | -10/Materials | Discovered new exit (range 10) 1944 | -10/Materials | Reached level 3 1961 | -10/Materials | Upgraded with Utility slot (x1) 2178 | -10/Materials | Discovered new exit (range 15) 2644 | -10/Materials | Entered Mines 2646 | -10/Mines | Reached level 4 2666 | -10/Mines | Discovered new exit (range 8) 2673 | -10/Mines | Met a Derelict bent on vengeance 2753 | -10/Mines | Discovered new exit (range 9) 2848 | -10/Mines | Received a Rocket Launcher from a helpful Derelict 3140 | -10/Mines | Learned Materials emergency access door positions 3156 | -10/Mines | Reached level 5 3198 | -10/Mines | Met a Derelict shopkeep closing up shop 3198 | -10/Mines | Upgraded with Utility slot (x1) 3262 | -10/Mines | Upgraded with Propulsion slot (x1) 3294 | -10/Mines | Discovered new exit (range 5) 3296 | -10/Mines | Identified exit to Materials 3421 | -10/Mines | Identified exit to Subcaves 3432 | -10/Mines | Entered Materials 3434 | -9/Materials | Reached level 6 3434 | -9/Materials | Upgraded with Propulsion slot (x1) 3535 | -9/Materials | Reached level 7 3644 | -9/Materials | Discovered new exit (range 15) 3890 | -9/Materials | Identified exit to Materials 3905 | -9/Materials | Reached level 8 3912 | -9/Materials | Upgraded with Power slot (x1) 3912 | -9/Materials | Upgraded with Utility slot (x1) 3951 | -9/Materials | Learned Materials emergency access door positions 4039 | -9/Materials | Learned location of Mines (-8) 4068 | -9/Materials | Learned Storage stockpile data 4242 | -9/Materials | Central database locked down 4422 | -9/Materials | Reached level 9 4425 | -9/Materials | Upgraded with Propulsion slot (x1) 4768 | -9/Materials | Discovered exit to Materials (range 8) 5032 | -9/Materials | First assault squad dispatched 5046 | -9/Materials | Build established: Hacker-Mutant 5128 | -9/Materials | Reached level 10 5131 | -9/Materials | Upgraded with Power slot (x1) 5329 | -9/Materials | Identified exit to Mines 6170 | -9/Materials | Entered Mines 6189 | -9/Mines | A Derelict revealed a hidden shortcut to a safe place 6192 | -9/Mines | Identified exit to Zion 6372 | -9/Mines | Learned Materials security intel 6487 | -9/Mines | Discovered new exit (range 6) 6487 | -9/Mines | Deemed a non-threat by the Exiles lab entrance 6491 | -9/Mines | Identified exit to Exiles 6638 | -9/Mines | Discovered exit to Materials (range 16) 6641 | -9/Mines | Found a damaged Exp. Sensor Array with a note attached 6644 | -9/Mines | Found Prototype Device 6644 | -9/Mines | Identified Exp. Sensor Array 6767 | -9/Mines | Assembled infested the area 6945 | -9/Mines | Destroyed 10 combat bots 6950 | -9/Mines | Build established: Scavenger-Skirmisher 7264 | -9/Mines | A weapon hastily lodged in a ceiling crevice suddenly fell to the ground 7460 | -9/Mines | Learned Materials terminal intel 7520 | -9/Mines | Discovered exit to Materials (range 16) 7572 | -9/Mines | Reached level 11 7599 | -9/Mines | Destroyed 8 combat bots 7831 | -9/Mines | Entered Exiles 7871 | -9/Exiles | Met 8R-AWN 7896 | -9/Exiles | Met EX-HEX 7941 | -9/Exiles | Met EX-BIN 7964 | -9/Exiles | Aligned with FarCom system 7966 | -9/Exiles | Given EX-Vault access code 8000 | -9/Exiles | Opened EX-Vault 8009 | -9/Exiles | Found Prototype Energy Cannon 8009 | -9/Exiles | Identified Latent Energy Streamer 8018 | -9/Exiles | Found Prototype Energy Cannon 8018 | -9/Exiles | Identified Firepult 8022 | -9/Exiles | Found Prototype Device 8022 | -9/Exiles | Identified PSU Rigger 8084 | -9/Exiles | Upgraded with Power slot (x1) 8115 | -9/Exiles | Warned to stay clear of 0b10 Research branches 8155 | -9/Exiles | Met EX-DEC 8205 | -9/Exiles | Visited The Gauntlet 8439 | -9/Exiles | Discovered new exit (range 14) 8476 | -9/Exiles | Identified exit to Mines 8519 | -9/Exiles | Left Exiles lab with Latent Energy Streamer 8519 | -9/Exiles | Entered Mines 8808 | -8/Mines | System corruption reached 10% 8847 | -8/Mines | Discovered exit to Materials (range 16) 9251 | -8/Mines | System corruption reached 30% 11347 | -8/Mines | System corrupted Last Messages --------------- 11240_ System corrupted: Hvy. Particle Cannon+ failed to cycle. 11241_ U-05 Engineer lays Concrete. 11243_ 2P/1HH3UYU1IKW YAXS&MGHE SJF Y 11243_ System corrupted: Latent Energy Streamer failed to cycle. 11243_ U-05 Engineer lays Concrete. 11245_ U-05 Engineer builds a Wall. 11246_ Dropped Hvy. Particle Cannon+. 11249_ U-05 Engineer builds a Wall. 11254_ U-05 Engineer lays Concrete. 11255_ U-05 Engineer builds a Wall. 11258_ System corrupted: Heat flow error (+188). 11259_ U-05 Engineer builds a Wall. 11267_ U-05 Engineer lays Concrete. 11268_ U-05 Engineer builds a Wall. 11285_ U-05 Engineer lays Concrete. 11288_ CP#|=34E:SU/E,WTZP2FP 4 9U 11288_ U-05 Engineer lays Concrete. 11291_ U-05 Engineer builds a Wall. 11294_ U-05 Engineer destroyed. 11347_ Cogmind system terminally corrupted. Map ----- +----------------------------------------------------+ | ?#?#########?###### ### ########### | | #?#####??######### #### ## ########### | | ?##?##??#####?### ###"##### ############ | | #?#?#?###?####### ##?####### ############# | | #?#??#####?###### ########################## | | ?################# #####?##################### | | ################## #######?#####?############# | | ######?########## #######?#?################## | | #####?######### #######?#?##?############### | | ?############# #?####?#####?############ | | ## ###### ########## | | ## ## ## ####### #?##?#### | | ## ## ############# ###### ##?#### ### " | | ?# ## ############# ##### ######## #### " | | ## ### ###### ######## ##### " | | # ##### ######## ##### | | # ############ ;;; ######### ###### | | ## ########## #; ;# ########## ######## | | ## ######### # ; ######### ######## | | # ###### #= ############ ######## | | #######% ######## | | #######! ##################### | | ######## ##################### | | ### ########; ###################### | | ################ ####################### | | ########### ## @ ####################### | | # ########### ###################?### | | #######?#?####### """ ######################## | | ???#??#?########## """ ######################## | | #?#????##?######### """ ######################## | | ??#??##??########### ################?######## | | #?#???##??##############################?######### | | ??##??##??#################################?###?## | | #?##?##??################################?######## | | | | | | | | | | | | | | | | | | | | | | | | | | | | | | | | | +----------------------------------------------------+ Best States ------------- Heat Dissipation 95 Energy Generation 49 Energy Capacity 520 Matter Stores 300 Matter Capacity 300 Sight Range 16 Robot Scan Range 20 Terrain Scan Range 16 Terrain Scan Density 310 Additional Mass Support 6 Armor Coverage 225 Evasion (%) 56 Targeting Accuracy 5 Recoil Reduction 5 Offensive Hacking 15 Defensive Hacking 5 Item Schematics ----------------- None Robot Schematics ------------------ None Fabricated ------------ Nothing Repaired ---------- Nothing Studied --------- Hover Unit | -9/Materials | Hacked Hvy. Particle Cannon | -9/Materials | Hacked Lgt. Nuclear Core | -9/Materials | Hacked Alien Tech Used ----------------- None Achievements -------------- Blue Mage Challenges ------------ None RPGLIKE | -11 -10 -10 -9 -9 -9 -8 --------- Run | Yrd Mat Min Mat Min Exi Min Levels Raised 10 | . 2 2 5 1 . . XP Earned 19003 | 3000 4200 2308 7665 987 80 763 XP Spent 16880 | 2940 2990 3060 6790 . 1100 . Upgrades 31 | 10 5 6 9 . 1 . Power Slot 3 | . . . 2 . 1 . Propulsion Slot 4 | 1 . 1 2 . . . Utility Slot 6 | 2 2 1 1 . . . Weapon Slot 1 | 1 . . . . . . Heat Dissipation 8 | 2 1 4 1 . . . Energy Generation 1 | . 1 . . . . . Mass Support 1 | . 1 . . . . . Inventory Capacity 1 | 1 . . . . . . Terrain Scan Density 3 | 3 . . . . . . Ranged Accuracy 1 | . . . 1 . . . Hack Attack % 1 | . . . 1 . . . Hack Defense % 1 | . . . 1 . . . Protomatter Created 907 | . 335 35 400 137 . . Integrity Restored 2223 | . 460 174 1198 391 . . Core 1755 | . 344 174 905 332 . . Parts 468 | . 116 . 293 59 . . Protomatter Decayed 309 | . 176 . 93 40 . . Game ------ Seed ElectrostormMomentumShell Manual? 0 Play Time 02:04:25 Cumulative 135.6 hours Start 2025.11.21 @ 15:52:08 End 2025.11.21 @ 17:05:40 Sessions 1 Manual Loads 0 Difficulty Rogue Special Mode Winter2019/RPGLIKE Game No. 93 Rogue 93 Adventurer 0 Explorer 0 Win Type - Total 0 Types 0/0/0/0/0/0/0/0/0/0 Lore% 66 Gallery% 44 Achievement% 45 Wizard Run 0 Options --------- Layout 0 ASCII 0 Keyboard 0 Movement Mouse Keybinds 0 Fullscreen 2 Font 24/Smallcaps Map View 76x50 Zoom Use 0% Tactical HUD 1 Map Filters NONE Filters NONE Steam 1 RUN: 8928d5c1-f181-4cf5-9f2b-e496c574eac6